Cogmind - Beta 15 @@@ ROGUE MODE // 2025.07.18 @ 12:15:20 Player: LightKnight Result: Destroyed by Combat Programmer with EMDS Performance ------------- Evolutions (8) 4000 Regions Visited (24) 4800 Robots Destroyed (287) 1435 Value Destroyed (15685) 15685 Prototype IDs (59) 1180 Alien Tech Used (12) 2400 Bonus (13692) 13692 TOTAL SCORE: 43192 Bonus ------- High Alert Combat Kills 1237 Follower Combat Kills 1050 Met Zhirov 300 Met R17 at Cetus 500 Found Hidden Lab 3000 Used Core Reset Matrix 3000 Met R17 at Research 2000 Scanned by Researcher 1000 Pursued by Intercept 500 Met Sigix 2000 Friendly Fire -895 Cogmind --------- Core Integrity 0/1450 Matter 243/300 Energy 100/100 System Corruption 26% Temperature Cool (0) Movement Walking (95) Location -2/Section 7 Parts ------- > --- POWER (3) -------- (None) > --- PROPULSION (4) --- Cooled-Biometal Exoskeleton > --- UTILITY (13) ----- Advanced Signal Interpreter Deep Network Scanner Core Physics Calibrator > --- WEAPON (4) ------- Ballistic Penetrator Construct/G > --- INVENTORY (5) ---- Medium Storage Unit Sigix Containment Pod Peak State ------------ > --- POWER ------------ Particle-Quantum Reactor > --- PROPULSION ------- Cooled-Biometal Exoskeleton > --- UTILITY ---------- Armored Scrap Engine Experimental Heat Sink Enhanced Optical Array Advanced Signal Interpreter Experimental Targeting Computer Quantum Capacitor Deep Network Scanner Experimental System Shield LC Capacitor > --- WEAPON ----------- Charged Construct/C Hpw. Thermal Phase Construct/G Ballistic Penetrator Construct/G > --- INVENTORY -------- Advanced Cryofiber Web Medium Storage Unit Advanced Sensor Array Transdimensional Reconstructor Core Reset Matrix [Rating: 197] Favorites ----------- Power Constructs Engine Ion Engine Power Core Light Nuclear Core Reactor Constructs Propulsion Constructs Treads Light Treads Leg Constructs Utility Armored Scrap Engine Device Armored Scrap Engine Storage High-capacity Storage Unit Processor Advanced Signal Interpreter Hackware Improved Hacking Suite Protection Improved Light Armor Plating Artifact LC Capacitor Weapon Constructs Energy Gun Constructs Energy Cannon Constructs Ballistic Gun Constructs Launcher Tesla Bomb Launcher Special Melee Weapon Improved Datajack Build | -11 -10 -10 -10 -9 -8 -8 -8 -6 -6 -6 -6 -6 -5 -4 -4 -4 -4 -3 -3 -3 -3 -2 -2 -2 ------- Run | Yrd Mat Min Exi Min Mat Sto Rec Fac Ext Cet Arc Hub Fac Fac Upp Upp Zhi Pro Res Arm Lab Res Qua Sec Slots Evolved 16 | . . . . . 4 . . 4 . . . . 2 2 . . . . 2 . . 2 . . Power 1 | . . . . . . . . 1 . . . . . . . . . . . . . . . . Propulsion 2 | . . . . . 1 . . 1 . . . . . . . . . . . . . . . . Utility 11 | . . . . . 2 . . 2 . . . . 1 2 . . . . 2 . . 2 . . Weapon 2 | . . . . . 1 . . . . . . . 1 . . . . . . . . . . . Parts Attached 133 | . 13 . . 1 15 20 11 8 2 . 2 3 . 4 1 2 . 1 9 2 3 5 28 3 Power 8 | . 2 . . . . 4 1 . . . . . . . . . . . . . . . 1 . Engine 3 | . 1 . . . . 1 1 . . . . . . . . . . . . . . . . . Core 4 | . 1 . . . . 3 . . . . . . . . . . . . . . . . . . Reactor 1 | . . . . . . . . . . . . . . . . . . . . . . . 1 . Propulsion 18 | . 2 . . 1 3 10 2 . . . . . . . . . . . . . . . . . Treads 18 | . 2 . . 1 3 10 2 . . . . . . . . . . . . . . . . . Leg . | . . . . . . . . . . . . . . . . . . . . . . . . . Wheel . | . . . . . . . . . . . . . . . . . . . . . . . . . Hover . | . . . . . . . . . . . . . . . . . . . . . . . . . Flight . | . . . . . . . . . . . . . . . . . . . . . . . . . Utility 80 | . 4 . . . 7 1 4 5 2 . 2 3 . 4 1 2 . 1 9 2 3 4 24 2 Device 47 | . 1 . . . 5 1 3 4 1 . 2 1 . 3 . . . 1 6 2 2 1 13 1 Storage 6 | . 2 . . . 1 . . . 1 . . . . . . . . . 1 . . . 1 . Processor 16 | . . . . . . . 1 1 . . . . . 1 1 2 . . 2 . . . 8 . Hackware 4 | . . . . . . . . . . . . 1 . . . . . . . . . 2 1 . Protection 4 | . 1 . . . 1 . . . . . . 1 . . . . . . . . 1 . . . Artifact 3 | . . . . . . . . . . . . . . . . . . . . . . 1 1 1 Weapon 27 | . 5 . . . 5 5 4 3 . . . . . . . . . . . . . 1 3 1 Energy Gun 11 | . . . . . 4 3 1 1 . . . . . . . . . . . . . . 2 . Energy Cannon 8 | . 2 . . . 1 1 2 1 . . . . . . . . . . . . . . . 1 Ballistic Gun 3 | . 3 . . . . . . . . . . . . . . . . . . . . . . . Ballistic Cannon . | . . . . . . . . . . . . . . . . . . . . . . . . . Launcher 4 | . . . . . . 1 . 1 . . . . . . . . . . . . . 1 1 . Special Weapon . | . . . . . . . . . . . . . . . . . . . . . . . . . Impact Weapon . | . . . . . . . . . . . . . . . . . . . . . . . . . Slashing Weapon . | . . . . . . . . . . . . . . . . . . . . . . . . . Piercing Weapon . | . . . . . . . . . . . . . . . . . . . . . . . . . Special Melee Weapon 1 | . . . . . . . 1 . . . . . . . . . . . . . . . . . Unidentified Prototypes 22 | . . . . . 1 1 1 . . . . . . 1 1 . 1 . 3 1 4 4 3 1 Parts Lost 65 | . 2 . . . 2 3 10 2 1 1 2 1 1 1 . . . 1 . . . 6 15 17 Power 4 | . . . . . . . 1 . . . . . . . . . . . . . . . . 3 Propulsion 9 | . 1 . . . 2 . 4 . . . . 1 . . . . . . . . . . 1 . Utility 28 | . . . . . . 1 3 . 1 . 2 . 1 1 . . . . . . . 2 8 9 Weapon 24 | . 1 . . . . 2 2 2 . 1 . . . . . . . 1 . . . 4 6 5 Highest Loss Streak 12 | . 1 . . . 1 1 10 1 1 1 1 1 1 1 . . . 1 . . . 1 6 12 To Critical Strikes 1 | . . . . . . . . . . . . . . . . . . . . . . . . 1 Average Backups 9 | . 7 12 15 14 16 19 17 14 18 20 19 18 2 2 5 5 4 5 6 9 7 4 2 1 Power . | . 2 3 2 1 1 1 1 . 1 1 1 . . . . . . . . . . . . . Propulsion 1 | . 2 2 4 4 3 6 6 1 1 1 1 . . . . . . . . . . . . . Utility 4 | . . 2 3 5 6 6 5 7 9 11 10 10 2 2 3 3 2 2 3 6 6 2 2 1 Weapon 2 | . 1 4 4 4 5 4 3 4 6 6 6 5 . . . . . . . . . . . . Tool/Special . | . . . . . . . . . . . . . . . . . . . . . . . . . Unused Backups 35 | . 6 2 1 2 2 2 7 . . . . 7 . . . . 2 . . . 3 1 . . Power 4 | . . . 1 1 . 1 . . . . . 1 . . . . . . . . . . . . Propulsion 10 | . 3 1 . . . . 6 . . . . . . . . . . . . . . . . . Utility 11 | . 1 1 . . 1 . 1 . . . . 3 . . . . 2 . . . 1 1 . . Weapon 7 | . 2 . . . 1 1 . . . . . 3 . . . . . . . . . . . . Tool/Special 3 | . . . . 1 . . . . . . . . . . . . . . . . 2 . . . Average Slot Usage (%) 73 | . 98 100 100 100 99 99 83 65 66 60 57 58 63 67 67 67 68 66 65 66 64 56 63 49 Engine 1 | . 9 . . . . . 3 6 5 3 3 . . . . . . . . . . . . . Core 2 | . 4 14 14 14 9 8 5 . . 2 . . . . . . . . . . . . . . Reactor 2 | . . . . . . . . . . . 2 6 5 5 5 5 5 5 4 4 4 4 4 3 Treads 8 | . 20 28 28 28 27 27 19 1 3 3 6 6 . . . . . . . 4 4 4 . 1 Leg 2 | . 6 . . . . . 1 4 2 2 . . 4 5 5 5 5 1 . . . . 2 . Device 19 | . 4 14 14 14 19 22 22 19 20 20 17 13 22 30 26 22 21 21 22 19 18 11 15 9 Storage 4 | . 14 14 14 14 9 9 9 6 6 6 6 5 . . . . . . 2 4 3 . . . Processor 8 | . . . . . . . . 5 6 6 6 6 5 5 12 18 21 21 16 19 18 12 17 13 Hackware 1 | . . . . . . . . . . . . 5 5 5 2 . . . . . . 7 8 7 Energy Gun 6 | . . . . . 21 26 20 4 8 2 . . . 1 5 5 5 3 4 9 9 3 3 3 Energy Cannon 7 | . 10 28 28 28 4 . . 14 6 1 . . . 6 5 5 5 5 4 4 4 6 5 2 Ballistic Gun 1 | . 17 . . . . . . . . 4 6 6 10 2 . . . . . . . . . . Ballistic Cannon 1 | . . . . . . . . . 3 3 6 6 4 3 5 5 5 5 3 . . . . 1 Peak Build Rating 197 | . 10 11 11 12 34 36 54 80 84 98 93 94 110 127 127 132 133 134 147 151 157 197 181 155 Average Rating 93 | . 7 10 11 11 28 33 37 76 78 89 87 92 108 121 125 130 132 130 141 149 151 187 156 138 On Entrance 83 | 6 6 10 11 11 12 33 36 54 76 84 90 93 76 105 127 124 132 133 132 147 151 157 134 151 Naked Turns . | . . . . . . . . . . . . . . . . . . . . . . . . . Heaviest Build 99 | 11 33 32 32 32 60 62 60 91 91 82 97 96 77 79 49 49 48 68 74 85 85 99 94 72 Greatest Support 193 | 20 40 40 40 40 60 62 69 69 105 105 68 68 128 132 129 129 129 129 129 177 177 177 193 174 Greatest Overweight (x) 2 | . 2 . . . . 1 2 1 1 1 1 1 1 . . . . . . . . . . . Average Overweight (x) . | . . . . . . . . . . . 1 . . . . . . . . . . . . . Largest Inventory Capacity 20 | . 15 15 15 15 20 20 20 20 20 20 20 20 5 5 5 5 5 5 10 10 10 10 10 5 Average Capacity 11 | . 12 15 15 15 19 20 20 20 20 20 20 18 5 5 5 5 5 5 8 10 9 5 5 5 Most Carried 20 | . 10 15 15 15 20 20 20 20 20 20 20 20 4 5 5 5 5 5 8 10 10 10 5 4 Average Carried 9 | . 7 12 15 14 16 19 17 14 18 20 19 18 1 2 4 5 4 5 6 9 8 4 3 3 Final Capacity 20 | 8 15 15 15 15 20 20 20 20 20 20 20 5 5 5 5 5 5 5 10 10 10 5 5 5 Final Carried 20 | 6 10 15 15 15 20 20 11 19 20 20 20 5 1 5 5 5 5 5 8 9 9 4 4 3 Scrap Engine Consumption 284 | . . . . . . . 26 24 24 20 8 . 2 45 6 8 2 3 14 9 6 25 41 21 Constructs Created 16 | . . . . . . . 3 2 . 1 . . 1 . . . . 1 . . . 2 3 3 Constructs Modified 107 | . . . . . . . 5 5 10 8 4 . 5 20 . . . 8 4 3 1 5 22 7 Class Distribution -------------------- 52% | Construct 15% | Mutant 6% | Commander-Construct 6% | Scavenger-Tank 4% | Gunner 4% | Hacker-Construct Dominant Class ---------------- Mutant | -10/Materials Mutant | -10/Mines Mutant | -10/Exiles Mutant | -9/Mines Scavenger-Tank | -8/Materials Scavenger-Tank | -8/Storage Gunner | -8/Recycling Construct | -6/Factory Commander-Construct | -6/Extension Commander-Construct | -6/Cetus Construct | -6/Archives Construct | -6/Hub_04(d) Construct | -5/Factory Construct | -4/Factory Construct | -4/Upper Caves Construct | -4/Upper Caves Construct | -4/Zhirov Construct | -3/Proximity Caves Construct | -3/Research Construct | -3/Armory Construct | -3/Lab Hacker-Construct | -2/Research Hacker-Construct | -2/Quarantine Hacker-Mutant | -2/Section 7 Resources | -11 -10 -10 -10 -9 -8 -8 -8 -6 -6 -6 -6 -6 -5 -4 -4 -4 -4 -3 -3 -3 -3 -2 -2 -2 ----------- Run | Yrd Mat Min Exi Min Mat Sto Rec Fac Ext Cet Arc Hub Fac Fac Upp Upp Zhi Pro Res Arm Lab Res Qua Sec Matter Collected 3392 | 168 439 10 . 13 195 242 150 148 372 55 35 50 . 183 55 69 30 85 146 30 137 245 384 151 Remotely . | . . . . . . . . . . . . . . . . . . . . . . . . . Salvage Created 16866 | . 691 49 . 148 1035 1465 716 674 934 396 382 199 . 1474 . 225 145 349 938 410 71 2549 2944 1072 Parts 772 | . 36 3 . 3 42 61 34 44 35 15 16 4 . 64 . 12 1 13 28 16 6 132 157 50 Haulers Intercepted 12 | . 2 . . . 3 5 . . . . . . . . . . . . 1 . . . . 1 Recyclers Shooed 2 | . . 1 . . . . . . 1 . . . . . . . . . . . . . . . Parts Field Recycled . | . . . . . . . . . . . . . . . . . . . . . . . . . Retrieved Matter . | . . . . . . . . . . . . . . . . . . . . . . . . . Parts Self-Destructed 22 | . . . . . . . . . . . . . . . . 12 1 9 . . . . . . Prevented 4 | . . . . . . . . . . . . . . . . . . 4 . . . . . . Kills | -11 -10 -10 -10 -9 -8 -8 -8 -6 -6 -6 -6 -6 -5 -4 -4 -4 -4 -3 -3 -3 -3 -2 -2 -2 ------- Run | Yrd Mat Min Exi Min Mat Sto Rec Fac Ext Cet Arc Hub Fac Fac Upp Upp Zhi Pro Res Arm Lab Res Qua Sec Combat Hostiles Destroyed 228 | . 13 3 . 3 16 21 7 14 16 5 4 3 . 21 . 2 . 4 11 5 1 31 37 11 Guns 69 | . 5 . . . 14 18 6 2 10 1 1 1 . 2 . 1 . . . . . . 7 1 Cannons 111 | . 8 3 . 3 . 1 . 4 6 2 2 1 . 17 . 1 . 2 5 5 . 29 20 2 AOE 18 | . . . . . . 1 . 5 . . . . . . . . . . 1 . . 2 6 3 Classes Destroyed 22 | . 6 . . . 3 1 2 1 . . . . . . . 1 . . 2 2 . 2 2 . Worker 5 | . 1 . . . . . . . . . . . . . . . . . . . . 2 . 2 Builder 7 | . . . . . . 1 1 1 . . . . . 1 . . . . . . . 1 1 1 Tunneler 1 | . . . . . . . . . . . . . . . . . . . . . . 1 . . Hauler 12 | . 2 . . . 3 5 . . . . . . . . . . . . 1 . . . . 1 Recycler 5 | . 1 . . . 1 1 2 . . . . . . . . . . . . . . . . . Minesweeper 3 | . . . . . . . . . . . . . . . . 1 . 2 . . . . . . Operator 4 | . . . . . 1 . . . . . 2 . . . . . . . . . . . 1 . Watcher 16 | . 3 . . . 1 . . 1 2 1 . . . 1 . . . . 2 1 . 2 2 . Swarmer 21 | . 3 3 . . 2 . . 4 . . . . . . . . . . 1 . . . 4 4 Grunt 69 | . 10 . . 3 9 9 . 3 5 . . 1 . 5 . 1 . . 4 2 . 7 10 . Brawler 1 | . . . . . . . . . . . . . . . . . . . . . . 1 . . Duelist 1 | . . . . . . . . . . . . . . . . . . . . 1 . . . . Protector 1 | . . . . . . . . . . . . . . . . . . . . . . . 1 . Researcher 2 | . . . . . . . . . . . . . . . . . . . . . . . 1 1 Sentry 49 | . . . . . 4 10 3 2 8 . 4 2 . 5 . 1 . . 2 1 . 4 1 2 Demolisher 1 | . . . . . . . . . . . . . . . . . . . . 1 . . . . Hunter 28 | . . . . . 1 2 . 2 3 . . . . 1 . . . 4 . . . 6 5 4 Programmer 39 | . . . . . . . . 3 . . . . . 10 . . . . . . . 13 13 . Cetus Guard 5 | . . . . . . . . . . 5 . . . . . . . . . . . . . . S7 Guard 1 | . . . . . . . . . . . . . . . . . . . . . . . . 1 Lightning 3 | . . . . . . . . . . . . . . . . . . . . . . . 3 . Striker 3 | . . . . . . . . . . . . . . . . . . . 3 . . . . . Executioner 1 | . . . . . . . . . . . . . . . . . . . 1 . . . . . Scientist 2 | . . . . . . . 2 . . . . . . . . . . . . . . . . . Scrapper 3 | . . . . . . . 3 . . . . . . . . . . . . . . . . . Thug 4 | . . . . . . . . . 2 1 . . . 1 . . . . . . . . . . Best Kill Streak 13 | . 3 3 . 3 4 4 5 4 3 5 2 2 . 4 . 1 . 2 3 3 1 13 7 4 Combat Bots Only 9 | . 3 3 . 3 4 4 2 4 3 4 2 2 . 4 . 1 . 2 3 3 1 9 6 3 Max Kills in Single Turn 4 | . 1 1 . 1 1 2 1 4 2 1 1 1 . 1 . 1 . 1 2 1 1 2 2 3 Gunslinging . | . . . . . . . . . . . . . . . . . . . . . . . . . Exploded 4 | . . . . . . 1 . 4 . . . . . . . . . . 1 . . 1 2 3 Melee . | . . . . . . . . . . . . . . . . . . . . . . . . . Uniques/NPCs Destroyed 2 | . . . . . . . 1 . . . . . . . . . . . . . 1 . . . KN-7UR (-8/Recycling) A5 (-3/Lab) Combat | -11 -10 -10 -10 -9 -8 -8 -8 -6 -6 -6 -6 -6 -5 -4 -4 -4 -4 -3 -3 -3 -3 -2 -2 -2 -------- Run | Yrd Mat Min Exi Min Mat Sto Rec Fac Ext Cet Arc Hub Fac Fac Upp Upp Zhi Pro Res Arm Lab Res Qua Sec Hostile Shots Fired 1708 | . 70 7 . 10 62 80 118 87 200 45 35 90 41 105 . 8 . 64 13 12 29 154 226 252 Missed 490 | . 15 3 . 2 14 30 8 33 70 14 9 34 11 40 . 6 . 16 3 1 4 52 71 54 Hits 1218 | . 55 4 . 8 48 50 110 54 130 31 26 56 30 65 . 2 . 48 10 11 25 102 155 198 Melee 2 | . . . . . . . . . . . . . . . . . . . . . . 1 1 . Projectile 1216 | . 55 4 . 8 48 50 110 54 130 31 26 56 30 65 . 2 . 48 10 11 25 101 154 198 AOE 2 | . . . . . . . . . . . . . . . . . . . . 2 . . . . Critical Strikes 54 | . 3 1 . . 3 . . 2 . 8 1 4 . 6 . . . 2 . 1 1 5 12 5 Part Disruptions 1 | . . . . . . . . . . . . . . . . . . . . . 1 . . . Damage Taken 23105 | . 798 61 . 104 714 791 1407 804 1501 840 627 1069 447 1135 . 37 30 846 338 349 574 2871 3682 4080 Core 2550 | . 113 . . 38 92 27 151 172 116 49 73 63 65 87 . 19 15 48 27 33 . 217 426 719 Absorbed by Shields 531 | . . . . . 21 22 . . 108 . . . 115 265 . . . . . . . . . . Reduced by Siege Mode 31 | . . . . . . . . . . . . . . . . . . . . . . 31 . . Redirected to Core 264 | . . . . . . . . . . . . . . . . . . . . . . . 129 135 Ignored by Resistances 393 | . . . . . . . . . . . . 17 . . . . . . . . . . 376 . Regen/Repaired (Parts) 8333 | . 102 . . . 69 71 5 100 854 864 482 . 434 1099 . . . 608 510 225 115 313 1920 562 Core Remaining (%) 71 | 100 . . . 39 . . 50 . . . . 44 93 . . . . 85 . . 90 . . . Volleys Fired 955 | . 74 5 . 7 53 64 32 43 59 27 27 12 12 89 4 7 5 20 37 30 23 126 117 82 Largest 3 | . 2 2 . 2 3 3 3 3 3 3 2 2 3 3 1 3 3 3 3 1 1 2 3 3 Hottest 360 | . 120 120 . 120 180 185 165 184 167 170 360 97 255 299 107 248 248 248 297 100 100 152 236 198 Shots Fired 1760 | . 148 11 1 15 159 184 74 83 154 57 49 20 17 204 4 19 9 44 39 30 23 126 185 105 Gun 864 | . 92 . . . 153 178 74 26 70 30 22 8 12 45 . 7 2 10 1 . . . 75 59 Cannon 877 | . 56 11 1 15 6 3 . 50 84 27 27 12 5 159 4 12 7 34 38 30 23 125 102 46 Launcher 19 | . . . . . . 3 . 7 . . . . . . . . . . . . . 1 8 . Special . | . . . . . . . . . . . . . . . . . . . . . . . . . Kinetic 369 | . 92 . . . . . . 7 78 14 . . 9 76 . 7 2 17 1 . . . 41 25 Thermal 1143 | . 56 11 1 15 159 181 69 27 71 43 49 20 8 111 4 12 7 20 1 30 23 120 90 15 Explosive 2 | . . . . . . . . 1 . . . . . . . . . . . . . 1 . . Electromagnetic 246 | . . . . . . 3 5 48 5 . . . . 17 . . . 7 37 . . 5 54 65 Robot Hit Streak 22 | . 9 7 . 11 13 15 16 14 12 7 6 6 4 16 . 6 6 8 7 6 10 17 20 22 Robot Miss Streak 10 | . 5 1 . . 3 4 2 3 4 2 3 2 3 5 . 2 1 2 3 2 1 4 2 10 Penetration Max . | . . . . . . . . . . . . . . . . . . . . . . . . . Secondary Targets 5 | . . . . . 2 3 . . . . . . . . . . . . . . . . . . Max Gunslinging Chain 1 | . . . . . 1 1 . . . . . . . . . . . . . . . . . . Capacitor 206 | . . . . . . . . . . . . . . . . . . . 36 30 23 117 . . Shots Hit Robots 1110 | . 82 7 . 11 109 114 59 47 87 42 32 11 6 115 . 14 3 31 22 17 15 87 134 65 Core Hits 472 | . 35 3 . 4 38 43 23 27 44 18 10 4 1 42 . 11 2 11 9 8 4 41 68 26 Critical Kills 5 | . . . . . . . . . . 2 . 1 . 1 . . . . . . 1 . . . Critical Parts Destroyed . | . . . . . . . . . . . . . . . . . . . . . . . . . Critical Strikes 30 | . . . . . 4 5 3 2 4 2 . 1 . 3 . . . . . . 1 . . 5 Burn 14 | . . . . . 4 5 3 . . . . . . 2 . . . . . . . . . . Meltdown 4 | . . . . . . . . . . 2 . 1 . . . . . . . . 1 . . . Destroy 1 | . . . . . . . . . . . . . . 1 . . . . . . . . . . Blast 5 | . . . . . . . . 1 4 . . . . . . . . . . . . . . . Corrupt 6 | . . . . . . . . 1 . . . . . . . . . . . . . . . 5 Melee Attacks 3 | . . . . . . . 3 . . . . . . . . . . . . . . . . . Impact . | . . . . . . . . . . . . . . . . . . . . . . . . . Slashing . | . . . . . . . . . . . . . . . . . . . . . . . . . Piercing . | . . . . . . . . . . . . . . . . . . . . . . . . . Sneak Attacks 3 | . . . . . . . 3 . . . . . . . . . . . . . . . . . Combat Hostiles . | . . . . . . . . . . . . . . . . . . . . . . . . . Follow-up Attacks . | . . . . . . . . . . . . . . . . . . . . . . . . . Damage Inflicted 44853 | . 1400 145 . 218 2174 2616 993 1404 2897 1644 1406 486 222 5232 11 403 74 1259 2056 1364 870 8073 7784 2122 Guns 13012 | . 658 . . . 2104 2229 909 268 1489 685 425 159 152 725 . 153 57 204 . . . . 1930 865 Cannons 27328 | . 588 124 . 218 70 54 . 573 1408 959 981 322 70 4507 . 250 17 1025 1795 1364 870 7251 4303 579 Explosions 4364 | . 125 . . . . 299 45 563 . . . . . . . . . 30 261 . . 822 1541 678 Melee . | . . . . . . . . . . . . . . . . . . . . . . . . . Ramming 149 | . 29 21 . . . 34 39 . . . . 5 . . 11 . . . . . . . 10 . Kinetic 6132 | . 658 . . . . . . 136 1646 367 . . 190 1439 . 88 17 169 . . . . 1213 209 Thermal 31601 | . 713 124 . 218 2174 2283 870 251 1179 1277 1406 481 32 3470 . 315 57 801 261 1364 870 7850 5150 455 Explosive 802 | . . . . . . 57 . 262 . . . . . . . . . . . . . 92 . 391 Electromagnetic 6169 | . . . . . . 242 84 755 72 . . . . 323 . . . 289 1795 . . 131 1411 1067 Impact . | . . . . . . . . . . . . . . . . . . . . . . . . . Slashing . | . . . . . . . . . . . . . . . . . . . . . . . . . Piercing . | . . . . . . . . . . . . . . . . . . . . . . . . . Highest Corruption 26 | . 1 1 1 1 . . . 6 1 1 1 . 4 2 2 2 2 2 . . 3 6 16 26 Average Corruption 2 | . 1 1 1 1 . . . 3 1 1 1 . 2 1 2 2 2 2 . . 2 3 11 16 Corruption Purged 6 | . . . . . . . . 5 . . 1 . . . . . . . . . . . . . Corruption Blocked . | . . . . . . . . . . . . . . . . . . . . . . . . . Effects 226 | . 3 10 1 1 . . . 30 18 5 1 . 2 12 18 16 7 23 . . 6 10 33 30 Message Errors 45 | . 1 2 . . . . . 7 2 1 . . . 3 5 2 1 7 . . 1 2 7 4 Matter Fused 63 | . . 3 . . . . . 10 7 . 1 . 1 3 5 5 2 6 . . 1 3 6 10 Heat Flow Errors 33 | . 1 1 . . . . . 3 3 2 . . . 1 3 2 3 2 . . 1 2 5 4 Energy Discharges 24 | . . . . . . . . 2 3 1 . . . 1 . 4 . 1 . . 2 2 6 2 Parts Rejected 5 | . . . . . . . . 1 . . . . . 1 . . . 1 . . . . 1 1 Parts Fused 4 | . . 1 . . . . . . . . . . . . 1 . . 1 . . . . . 1 Data Loss (minor) 26 | . 1 1 . . . . . 6 2 . . . . 1 4 1 1 2 . . 1 . 3 3 Data Loss (major) 5 | . . 1 . . . . . . . . . . . 1 . 1 . 1 . . . . . 1 Misfires 7 | . . 1 1 1 . . . 1 1 . . . . . . . . . . . . . 1 1 Alerts 6 | . . . . . . . . . . 1 . . 1 1 . 1 . 2 . . . . . . Misdirections 1 | . . . . . . . . . . . . . . . . . . . . . . . . 1 Weapon Failures 7 | . . . . . . . . . . . . . . . . . . . . . . 1 4 2 Overload Shots 4 | . . . . . . . . . . . 3 . 1 . . . . . . . . . . . Overflow Damage 2838 | . 43 . . . . . 5 . 45 102 165 17 . 479 . . . 59 171 121 23 865 597 146 Projectiles 2517 | . 4 . . . . . . . 45 102 165 17 . 479 . . . 52 171 121 23 776 562 . Explosions 321 | . 39 . . . . . 5 . . . . . . . . . . 7 . . . 89 35 146 Melee . | . . . . . . . . . . . . . . . . . . . . . . . . . Knockbacks 23 | . . . . . . . . . 3 . . . 1 12 . 1 2 2 . . . . . 2 Impact . | . . . . . . . . . . . . . . . . . . . . . . . . . Kinetic 22 | . . . . . . . . . 3 . . . 1 12 . 1 1 2 . . . . . 2 Secondary 1 | . . . . . . . . . . . . . . . . . 1 . . . . . . . Self-Inflicted Damage 597 | . 101 . . . . 53 . 16 . . . . . . . . . . . . . 263 164 . Shots 9 | . 1 . . . . 1 . 1 . . . . . . . . . . . . . 4 2 . Rammed 14 | . 4 3 . . . 3 2 . . . . 2 . . . . . . . . . . . . Targets Rammed 22 | . 6 3 . . . 3 3 . . . . 2 . . 4 . . . . . . . 1 . Kicked 7 | . 2 . . . . . . . . . . . . . 4 . . . . . . . 1 . Crushed 1 | . . . . . . . 1 . . . . . . . . . . . . . . . . . Highest Temperature 320 | . 216 168 6 204 206 87 130 217 145 84 320 160 316 293 28 30 16 13 92 297 171 298 182 237 Average Temperature 65 | . 74 57 4 102 50 21 29 53 53 13 57 53 131 74 22 30 16 13 48 112 83 112 76 77 Received Heat Transfer 3648 | . 369 9 . 57 372 261 738 63 320 . 81 93 . 158 . . . . 42 73 39 622 252 99 Effects 3 | . . . . . . . . 1 . . . . . . . . . . . . . 2 . . Energy Bleed 3 | . . . . . . . . 1 . . . . . . . . . . . . . 2 . . Siege Activations 1 | . . . . . . . . . . . . . . . . . . . . . . 1 . . Total Turns 18 | . . . . . . . . . . . . . . . . . . . . . . 18 . . Longest Duration 18 | . . . . . . . . . . . . . . . . . . . . . . 18 . . Martial Activations . | . . . . . . . . . . . . . . . . . . . . . . . . . Shielding Activations . | . . . . . . . . . . . . . . . . . . . . . . . . . Robots Disrupted 1 | . . . . . . . . . . . . . . . . . . . . . . . 1 . Combat Hostiles 1 | . . . . . . . . . . . . . . . . . . . . . . . 1 . Robots Corrupted 24 | . . . . . . . . 3 . . . . . 2 . . . 2 6 . . . 5 6 Combat Hostiles 21 | . . . . . . . . 3 . . . . . 2 . . . 2 5 . . . 4 5 Parts Fried 56 | . . . . . . 1 1 7 . . . . . 3 . . . 5 14 . . 1 18 6 Impact Corruptions 2 | . 1 . . . . . . . . . . . . . . . . . . . . . 1 . Robots Melted 9 | . . . . . 2 1 1 . . 2 1 1 . . . . . . . . 1 . . . Combat Hostiles 9 | . . . . . 2 1 1 . . 2 1 1 . . . . . . . . 1 . . . Parts Melted 55 | . . 1 . . 10 16 13 . 1 2 1 4 . 4 . . . . . . 2 . . 1 Heat Transferred 22262 | . 1321 259 . 444 4514 4662 2051 296 1221 1258 1197 407 37 2809 . 225 75 350 36 . . 300 600 200 Parts Sabotaged 2 | . . . . . . . . . . . . . . . . . . . . . . . 2 . Parts Stolen . | . . . . . . . . . . . . . . . . . . . . . . . . . Parts Stripped . | . . . . . . . . . . . . . . . . . . . . . . . . . Power Chain Reactions 14 | . . . . . . . 1 . . . . . . . . . . 1 1 . . 6 4 1 Alert | -11 -10 -10 -10 -9 -8 -8 -8 -6 -6 -6 -6 -6 -5 -4 -4 -4 -4 -3 -3 -3 -3 -2 -2 -2 ------- Run | Yrd Mat Min Exi Min Mat Sto Rec Fac Ext Cet Arc Hub Fac Fac Upp Upp Zhi Pro Res Arm Lab Res Qua Sec Maximum Alert Level 3 | . . . . . . 1 . 1 2 1 . . . 1 . . . . . . . 3 3 3 Low Security (%) 71 | . 100 100 . 100 100 57 100 98 28 6 100 100 100 66 . . . . 100 100 . 52 3 . Level 1 16 | . . . . . . 42 . 1 31 93 . . . 33 . . . . . . . 19 52 . Level 2 9 | . . . . . . . . . 39 . . . . . . . . . . . . 18 23 99 Level 3 2 | . . . . . . . . . . . . . . . . . . . . . . 9 21 . Level 4 . | . . . . . . . . . . . . . . . . . . . . . . . . . Level 5 . | . . . . . . . . . . . . . . . . . . . . . . . . . High Security . | . . . . . . . . . . . . . . . . . . . . . . . . . Max Security . | . . . . . . . . . . . . . . . . . . . . . . . . . Peak Influence 911 | . 164 89 . 85 196 265 109 200 643 360 96 69 18 272 . . . . 94 78 . 736 911 710 Initial 476 | . . 49 . . . 77 89 200 67 360 76 . 18 . . . . . . 23 . . 394 476 Average 151 | . 67 9 . 11 89 161 13 76 331 267 50 16 1 123 . . . . 27 32 . 250 465 630 Influence Increases 8923 | . 536 70 . 85 466 744 226 635 1337 239 141 116 14 652 . 50 10 110 319 162 15 1107 1328 561 Destroy 0b10 Robot/C 4900 | . 260 60 . 60 320 420 60 280 680 160 80 60 . 420 . 40 . 80 220 100 . 620 740 240 Destroy 0b10 Robot/NC 295 | . 35 . . . 30 35 15 10 20 5 10 . . 10 . 10 10 10 15 5 . 30 25 20 Destroy Leader 1014 | . 60 10 . 10 88 160 . 82 64 . . 20 . 102 . . . 20 46 22 . 154 124 52 Allied During Kill 515 | . . . . . . . . . 443 71 1 . . . . . . . . . . . . . Successful Hack 182 | . 38 . . . 10 6 25 13 54 . . . . 14 . . . . . . . . 22 . Select Force Hacks 180 | . 30 . . . . 30 120 . . . . . . . . . . . . . . . . . Disable Machine 480 | . 15 . . 15 . 45 . 30 45 . 45 30 . 15 . . . . 15 15 . 30 105 75 Destroy Structure 872 | . 38 . . . 3 18 6 20 31 3 5 6 14 76 . . . . 8 20 . 273 222 129 Advance Influence 200 | . . . . . . . . 200 . . . . . . . . . . . . . . . . Partial Spotted 30 | . . . . . . . . . . . . . . . . . . . . . . . 30 . Lose Combat Pursuer 255 | . 60 . . . 15 30 . . . . . . . 15 . . . . 15 . 15 . 60 45 Influence Decreases 8318 | . 408 198 . 85 282 698 456 496 833 691 332 77 53 387 265 50 10 110 275 206 15 405 1183 803 Entered New Map 1617 | . . 79 . . . 107 141 . 72 283 115 . 21 . 99 . . . . 21 . . 308 371 Time Decay 5535 | . 388 119 . 85 262 496 315 476 544 238 157 67 28 377 166 50 10 110 275 185 15 345 565 262 Lost Part 524 | . 20 . . . 20 30 . 20 . 10 20 10 4 10 . . . . . . . 60 150 170 Lost Ally 427 | . . . . . . . . . 217 160 40 . . . . . . . . . . . 10 . Purge Threat 215 | . . . . . . 65 . . . . . . . . . . . . . . . . 150 . Squads Dispatched 47 | . 2 . . 1 1 3 . 5 2 . . 1 2 5 . . . . 3 1 . 5 12 4 Investigation 7 | . 1 . . 1 . 2 . 1 . . . . . . . . . . 2 . . . . . Extermination 17 | . . . . . . . . 3 . . . . 1 4 . . . . . 1 . 3 5 . Reinforcement 14 | . 1 . . . 1 1 . 1 2 . . 1 . 1 . . . . 1 . . 1 3 1 Assault 2 | . . . . . . . . . . . . . . . . . . . . . . 1 1 . Garrison 4 | . . . . . . . . . . . . . 1 . . . . . . . . . 3 . Intercept 3 | . . . . . . . . . . . . . . . . . . . . . . . . 3 Searches Triggered . | . . . . . . . . . . . . . . . . . . . . . . . . . Construction Impeded 3 | . . . . . . . . 1 1 . . . . . . . . . . . . . 1 . Haulers Reinforced 1 | . . . . . . . . . . . . . . 1 . . . . . . . . . . Active Scanning Responses . | . . . . . . . . . . . . . . . . . . . . . . . . . Cargo Convoy Interrupts 1 | . . . . . . . . . . . . . . . . . . . . . . 1 . . Stealth | -11 -10 -10 -10 -9 -8 -8 -8 -6 -6 -6 -6 -6 -5 -4 -4 -4 -4 -3 -3 -3 -3 -2 -2 -2 --------- Run | Yrd Mat Min Exi Min Mat Sto Rec Fac Ext Cet Arc Hub Fac Fac Upp Upp Zhi Pro Res Arm Lab Res Qua Sec Distress Signals 16 | . 3 . . . . 2 . . 2 2 . . . 4 . . . . 1 1 . 1 . . Communications Jammed . | . . . . . . . . . . . . . . . . . . . . . . . . . Distress Signals . | . . . . . . . . . . . . . . . . . . . . . . . . . Times Spotted 363 | . 24 4 . 3 22 26 5 17 32 12 11 11 6 31 . 2 . 4 21 9 4 53 48 18 Peak Tracking Total 14 | . 5 3 . 3 5 4 2 4 5 5 1 6 6 4 . 1 . 2 5 3 3 14 5 6 Tactical Retreats 14 | . 3 . . . 1 1 . . . . . . . 1 . . . . 1 . 1 . 3 3 Traps | -11 -10 -10 -10 -9 -8 -8 -8 -6 -6 -6 -6 -6 -5 -4 -4 -4 -4 -3 -3 -3 -3 -2 -2 -2 ------- Run | Yrd Mat Min Exi Min Mat Sto Rec Fac Ext Cet Arc Hub Fac Fac Upp Upp Zhi Pro Res Arm Lab Res Qua Sec Traps Triggered 17 | . 1 . . . . 2 . 2 5 . . 2 . 1 . . . . . 1 . 3 . . Indirectly . | . . . . . . . . . . . . . . . . . . . . . . . . . Trap Hack Attempts . | . . . . . . . . . . . . . . . . . . . . . . . . . Triggered . | . . . . . . . . . . . . . . . . . . . . . . . . . Disarmed . | . . . . . . . . . . . . . . . . . . . . . . . . . Reprogrammed 6 | . . . . . . 6 . . . . . . . . . . . . . . . . . . Reused . | . . . . . . . . . . . . . . . . . . . . . . . . . Traps Extracted . | . . . . . . . . . . . . . . . . . . . . . . . . . Installed 6 | . . . . . . . . . . . . . . . . . . 6 . . . . . . Triggered . | . . . . . . . . . . . . . . . . . . . . . . . . . Machines | -11 -10 -10 -10 -9 -8 -8 -8 -6 -6 -6 -6 -6 -5 -4 -4 -4 -4 -3 -3 -3 -3 -2 -2 -2 ---------- Run | Yrd Mat Min Exi Min Mat Sto Rec Fac Ext Cet Arc Hub Fac Fac Upp Upp Zhi Pro Res Arm Lab Res Qua Sec Machines Disabled 40 | . 1 . . 1 . 3 . 2 5 . 3 2 . 1 1 . 1 . 1 1 4 2 7 5 Max in Single Turn 1 | . 1 . . 1 . 1 . 1 1 . 1 1 . 1 1 . 1 . 1 1 1 1 1 1 Garrison Access 3 | . . . . . . 1 . . . . . 1 1 . . . . . . . . . . . Machines Repaired . | . . . . . . . . . . . . . . . . . . . . . . . . . Machines Dismantled . | . . . . . . . . . . . . . . . . . . . . . . . . . Machines Sabotaged . | . . . . . . . . . . . . . . . . . . . . . . . . . Overloaded Fab Kills . | . . . . . . . . . . . . . . . . . . . . . . . . . Hacking | -11 -10 -10 -10 -9 -8 -8 -8 -6 -6 -6 -6 -6 -5 -4 -4 -4 -4 -3 -3 -3 -3 -2 -2 -2 --------- Run | Yrd Mat Min Exi Min Mat Sto Rec Fac Ext Cet Arc Hub Fac Fac Upp Upp Zhi Pro Res Arm Lab Res Qua Sec Machines Accessed 78 | . 10 . 1 1 4 11 11 4 8 . 1 2 2 2 2 1 4 . 1 . 3 2 6 2 Terminals 50 | . 8 . . . 3 8 6 2 8 . . 1 1 2 . . . . 1 . . 2 6 2 Fabricators . | . . . . . . . . . . . . . . . . . . . . . . . . . Repair Stations 3 | . 1 . . . 1 1 . . . . . . . . . . . . . . . . . . Recycling Units 6 | . 1 . . . . 1 4 . . . . . . . . . . . . . . . . . Scanalyzers . | . . . . . . . . . . . . . . . . . . . . . . . . . Garrison Access 5 | . . . . . . 1 . 2 . . . 1 1 . . . . . . . . . . . Total Hacks 186 | . 28 . 1 1 17 21 23 9 15 . 1 3 6 3 2 1 17 . 1 . 20 3 11 3 Successful 117 | . 14 . 1 1 9 15 17 2 7 . 1 2 1 1 2 1 17 . . . 20 1 4 1 Failed 68 | . 13 . . . 8 6 6 7 8 . . 1 5 2 . . . . 1 . . 2 7 2 Catastrophic 11 | . . . . . . 1 2 2 2 . . . . . . . . . 1 . . 1 1 1 Database Lockouts 1 | . 1 . . . . . . . . . . . . . . . . . . . . . . . Manual 72 | . 15 . . . 12 10 12 6 4 . . 2 . . . . . . . . 3 3 4 1 Terminals 118 | . 24 . . . 14 17 16 5 15 . . 2 4 3 . . . . 1 . . 3 11 3 Fabricators . | . . . . . . . . . . . . . . . . . . . . . . . . . Repair Stations 8 | . 3 . . . 3 2 . . . . . . . . . . . . . . . . . . Recycling Units 7 | . 1 . . . . 1 5 . . . . . . . . . . . . . . . . . Scanalyzers . | . . . . . . . . . . . . . . . . . . . . . . . . . Garrison Access 8 | . . . . . . 1 . 4 . . . 1 2 . . . . . . . . . . . Terminal Hacks 88 | . 8 . 1 1 5 8 12 1 6 . 1 . . 1 2 1 17 . . . 20 . 4 . Record 27 | . . . 1 . . . . . . . 1 . . . . . 5 . . . 19 . 1 . Part Schematic 6 | . . . . . . . 2 . . . . . . . . . 4 . . . . . . . Robot Analysis 9 | . 1 . . . 2 . 2 . . . . . . . . . 4 . . . . . . . Prototype ID Bank 14 | . 3 . . . . 1 6 . . . . . . . . . 4 . . . . . . . Open Door 12 | . . . . 1 . 2 . . 5 . . . . . 2 1 . . . . . . 1 . Branch Access Points 3 | . . . . . 1 . . 1 . . . . . 1 . . . . . . . . . . Unreport Threat 2 | . . . . . . 1 . . . . . . . . . . . . . . . . 1 . Locate Traps 11 | . 4 . . . 2 3 . . 1 . . . . . . . . . . . . . 1 . Reprogram Traps 1 | . . . . . . 1 . . . . . . . . . . . . . . . . . . Release Object 3 | . . . . . . . 2 . . . . . . . . . . . . . 1 . . . Fabricator Hacks . | . . . . . . . . . . . . . . . . . . . . . . . . . Repair Station Hacks 6 | . 2 . . . 2 2 . . . . . . . . . . . . . . . . . . Scan Component 3 | . 1 . . . 1 1 . . . . . . . . . . . . . . . . . . Repair 3 | . 1 . . . 1 1 . . . . . . . . . . . . . . . . . . Recycling Unit Hacks . | . . . . . . . . . . . . . . . . . . . . . . . . . Scanalyzer . | . . . . . . . . . . . . . . . . . . . . . . . . . Garrison Access Hacks 3 | . . . . . . 1 . . . . . 1 1 . . . . . . . . . . . Seal Access 3 | . . . . . . 1 . . . . . 1 1 . . . . . . . . . . . Unauthorized Hacks 20 | . 4 . . . 2 4 5 1 1 . . 1 . . . . . . . . . 1 . 1 Terminals 14 | . 3 . . . 2 3 1 1 1 . . 1 . . . . . . . . . 1 . 1 Assimilate 1 | . . . . . . 1 . . . . . . . . . . . . . . . . . . Botnet 12 | . 3 . . . 2 2 1 1 1 . . . . . . . . . . . . 1 . 1 Disrupt 1 | . . . . . . . . . . . . 1 . . . . . . . . . . . . Fabricators . | . . . . . . . . . . . . . . . . . . . . . . . . . Repair Stations . | . . . . . . . . . . . . . . . . . . . . . . . . . Recycling Units 6 | . 1 . . . . 1 4 . . . . . . . . . . . . . . . . . Tunnel 6 | . 1 . . . . 1 4 . . . . . . . . . . . . . . . . . Scanalyzers . | . . . . . . . . . . . . . . . . . . . . . . . . . Garrison Access . | . . . . . . . . . . . . . . . . . . . . . . . . . Data Cores Recovered 1 | . . . . . 1 . . . . . . . . . . . . . . . . . . . Used . | . . . . . . . . . . . . . . . . . . . . . . . . . Hacking Detections 45 | . 8 . . . 4 6 5 4 5 . . 1 1 2 . . . . 1 . . 2 4 2 Full Trace Events 1 | . 1 . . . . . . . . . . . . . . . . . . . . . . . Feedback Events 1 | . 1 . . . . . . . . . . . . . . . . . . . . . . . Corruption 1 | . 1 . . . . . . . . . . . . . . . . . . . . . . . Feedback Blocked . | . . . . . . . . . . . . . . . . . . . . . . . . . Robot Schematics Acquired 2 | . . . . . . . . . . . . . . . . . . . . . . . 2 . Robots Built . | . . . . . . . . . . . . . . . . . . . . . . . . . Authchips . | . . . . . . . . . . . . . . . . . . . . . . . . . Time . | . . . . . . . . . . . . . . . . . . . . . . . . . Total Robot Build Rating . | . . . . . . . . . . . . . . . . . . . . . . . . . Part Schematics Acquired 8 | . . . . . . . 2 . . . . . . . . . 4 . . . . . 2 . Parts Built . | . . . . . . . . . . . . . . . . . . . . . . . . . Authchips . | . . . . . . . . . . . . . . . . . . . . . . . . . Time . | . . . . . . . . . . . . . . . . . . . . . . . . . Total Part Build Rating . | . . . . . . . . . . . . . . . . . . . . . . . . . Parts Repaired 3 | . 1 . . . 1 1 . . . . . . . . . . . . . . . . . . Time 112 | . 26 . . . 26 60 . . . . . . . . . . . . . . . . . . Parts Recycled . | . . . . . . . . . . . . . . . . . . . . . . . . . Recycled Matter . | . . . . . . . . . . . . . . . . . . . . . . . . . Retrieved Matter . | . . . . . . . . . . . . . . . . . . . . . . . . . Retrieved Components . | . . . . . . . . . . . . . . . . . . . . . . . . . Parts Scanalyzed . | . . . . . . . . . . . . . . . . . . . . . . . . . Part Schematics Acquired . | . . . . . . . . . . . . . . . . . . . . . . . . . Parts Damaged . | . . . . . . . . . . . . . . . . . . . . . . . . . Bothacking | -11 -10 -10 -10 -9 -8 -8 -8 -6 -6 -6 -6 -6 -5 -4 -4 -4 -4 -3 -3 -3 -3 -2 -2 -2 ------------ Run | Yrd Mat Min Exi Min Mat Sto Rec Fac Ext Cet Arc Hub Fac Fac Upp Upp Zhi Pro Res Arm Lab Res Qua Sec Used RIF Installer . | . . . . . . . . . . . . . . . . . . . . . . . . . Robots Hacked 2 | . . . . . . . 2 . . . . . . . . . . . . . . . . . Non-combat . | . . . . . . . . . . . . . . . . . . . . . . . . . Combat 2 | . . . . . . . 2 . . . . . . . . . . . . . . . . . Robot Hacks Applied 3 | . . . . . . . 3 . . . . . . . . . . . . . . . . . parse_system 3 | . . . . . . . 3 . . . . . . . . . . . . . . . . . Relay Couplers Released . | . . . . . . . . . . . . . . . . . . . . . . . . . Fabnet Peak Effective % . | . . . . . . . . . . . . . . . . . . . . . . . . . Robots Rewired 23 | . . . . . . . . . 23 . . . . . . . . . . . . . . . Allies Hacked . | . . . . . . . . . . . . . . . . . . . . . . . . . Hacks Repelled . | . . . . . . . . . . . . . . . . . . . . . . . . . Allies | -11 -10 -10 -10 -9 -8 -8 -8 -6 -6 -6 -6 -6 -5 -4 -4 -4 -4 -3 -3 -3 -3 -2 -2 -2 -------- Run | Yrd Mat Min Exi Min Mat Sto Rec Fac Ext Cet Arc Hub Fac Fac Upp Upp Zhi Pro Res Arm Lab Res Qua Sec Total Allies 30 | . . 2 . . . . . . 28 . . . . . . . . . . . . . . . Largest Group 15 | . . 2 2 . . . . . 15 11 2 . . . . . . . . . . . . . Highest-Rated Group 568 | . . 38 38 . . . . . 568 298 35 . . . . . . . . . . . . . Highest-Rated Ally 159 | . . 31 31 . . . . . 159 39 21 . . . . . . . . . . . . . Total Orders . | . . . . . . . . . . . . . . . . . . . . . . . . . Ally Attacks 191 | . . . . . . . . . 151 40 . . . . . . . . . . . . . . Total Damage 3363 | . . . . . . . . . 2691 672 . . . . . . . . . . . . . . Kills 25 | . . . . . . . . . 22 3 . . . . . . . . . . . . . . Allies Corrupted . | . . . . . . . . . . . . . . . . . . . . . . . . . Allies Melted . | . . . . . . . . . . . . . . . . . . . . . . . . . Intel | -11 -10 -10 -10 -9 -8 -8 -8 -6 -6 -6 -6 -6 -5 -4 -4 -4 -4 -3 -3 -3 -3 -2 -2 -2 ------- Run | Yrd Mat Min Exi Min Mat Sto Rec Fac Ext Cet Arc Hub Fac Fac Upp Upp Zhi Pro Res Arm Lab Res Qua Sec Active Infowar (turns) 14757 | . . . . . . . . 1667 . . 118 226 454 1832 1612 1480 469 1573 1340 487 932 963 1604 . Optics 10529 | . . . . . . . . . . . . . . 69 1612 1480 469 1573 1340 487 932 963 1604 . Sensors 13351 | . . . . . . . . 1667 . . 118 226 454 1832 1612 1480 469 1573 1131 241 524 698 1326 . Robot Analysis Total 9 | . 1 . . . 2 . 2 . . . . . . . . . 4 . . . . . . . Derelict Logs Recovered 6 | . . 2 . 1 . . . . . . . . . . 1 2 . . . . . . . . Drone Launches 1 | . . . . . . . . . . . . . . . . . . . . . . . 1 . Drone Recoveries . | . . . . . . . . . . . . . . . . . . . . . . . . . Exploration | -11 -10 -10 -10 -9 -8 -8 -8 -6 -6 -6 -6 -6 -5 -4 -4 -4 -4 -3 -3 -3 -3 -2 -2 -2 ------------- Run | Yrd Mat Min Exi Min Mat Sto Rec Fac Ext Cet Arc Hub Fac Fac Upp Upp Zhi Pro Res Arm Lab Res Qua Sec Turns Passed 25783 | . 1399 1097 245 750 825 1366 2053 1854 1616 511 358 265 485 1845 1612 1480 469 1573 1340 487 932 963 1684 574 Spaces Moved 12094 | 1 731 625 153 451 362 650 1126 868 574 153 117 90 225 770 792 725 199 643 460 249 519 415 893 303 Core . | . . . . . . . . . . . . . . . . . . . . . . . . . Treads 5729 | . 515 625 153 451 362 650 891 150 317 98 117 90 15 . . . . . 4 249 519 415 13 95 Legs 4881 | 1 216 . . . . . 235 718 257 55 . . 210 770 792 725 199 204 . . . . 476 23 Wheels 895 | . . . . . . . . . . . . . . . . . . 439 456 . . . . . Hover 589 | . . . . . . . . . . . . . . . . . . . . . . . 404 185 Flight . | . . . . . . . . . . . . . . . . . . . . . . . . . Fastest Speed 85 | 120 120 160 160 160 160 155 127 140 170 170 222 201 201 201 201 201 201 201 209 158 158 158 85 95 Average Speed 172 | 120 149 160 160 160 160 158 158 182 200 175 231 248 204 201 201 201 201 201 209 163 158 180 104 96 Slowest Speed 260 | 120 260 160 160 160 160 240 253 225 225 222 253 253 253 201 201 201 201 209 233 233 158 201 201 145 Overloaded Moves . | . . . . . . . . . . . . . . . . . . . . . . . . . Propulsion Burnouts . | . . . . . . . . . . . . . . . . . . . . . . . . . Robots Hopped . | . . . . . . . . . . . . . . . . . . . . . . . . . Potential Cave-ins . | . . . . . . . . . . . . . . . . . . . . . . . . . Cave-ins Triggered . | . . . . . . . . . . . . . . . . . . . . . . . . . Teleports 2 | . . . . . . . . . . . . . . . . . . . . 1 . 1 . . Exploration Rate (%) 58 | 2 98 98 53 94 41 91 99 22 75 58 81 12 8 23 98 92 90 83 12 26 100 18 67 11 Regions Visited 24 Branch Regions 17 Pre-discovered Areas 11 | . 1 1 1 . . 1 4 . . . . . . . . . 3 . . . . . . . Known Exits Taken 17 | . . . . . 1 . . 1 1 1 1 1 1 1 1 1 1 1 1 1 1 1 1 . Unknown Exits Taken 7 | 1 1 1 1 1 . 1 1 . . . . . . . . . . . . . . . . . Scrap Searched 12 | . . 1 . 2 . . . . . . . . . . 2 5 . 2 . . . . . . Spaces Dug 49 | . . . . . . 1 . 3 2 . . 3 5 14 2 . . 2 . 4 . 6 6 1 Terrain Destroyed 416 | . 37 . . . . 13 6 18 21 3 5 6 6 39 3 2 4 10 3 10 . 94 88 48 Melee . | . . . . . . . . . . . . . . . . . . . . . . . . . Projectile 180 | . . . . . . 1 . 8 21 3 5 6 6 39 3 2 4 5 3 10 . 27 33 4 AOE 236 | . 37 . . . . 12 6 10 . . . . . . . . . 5 . . . 67 55 44 Terrain Rammed . | . . . . . . . . . . . . . . . . . . . . . . . . . Walls Destroyed . | . . . . . . . . . . . . . . . . . . . . . . . . . Machines Disabled . | . . . . . . . . . . . . . . . . . . . . . . . . . Actions | -11 -10 -10 -10 -9 -8 -8 -8 -6 -6 -6 -6 -6 -5 -4 -4 -4 -4 -3 -3 -3 -3 -2 -2 -2 --------- Run | Yrd Mat Min Exi Min Mat Sto Rec Fac Ext Cet Arc Hub Fac Fac Upp Upp Zhi Pro Res Arm Lab Res Qua Sec Total 15756 | . 886 711 154 468 489 846 1332 1062 927 345 159 112 240 947 806 735 263 887 839 328 632 625 1482 481 Wait 1959 | . 46 70 . . 32 78 121 115 . 165 10 2 . 75 . . 51 214 316 42 68 52 412 90 Move 12070 | . 730 624 152 450 361 649 1125 867 573 152 116 89 224 769 791 724 198 642 459 248 518 414 892 303 Hop . | . . . . . . . . . . . . . . . . . . . . . . . . . Pick Up 81 | . 6 7 1 5 11 9 5 11 1 . 2 . . 5 1 . 3 . 1 1 5 4 3 . Fast Attach 88 | . 5 . . . 5 1 6 4 . . 1 1 . 3 3 2 2 3 10 1 7 2 27 5 Attach 51 | . 3 . . . 8 4 8 2 1 . 2 . 4 2 . . . . 2 1 1 6 6 1 Detach 48 | . 2 . . . 6 . 10 1 . . 1 . . 1 1 1 . . 7 1 2 2 13 . Swap 80 | . 7 . . 1 7 21 3 12 1 . . 4 . 1 . . . . 2 4 2 14 1 . Drop 94 | . 7 2 1 5 6 17 16 2 . 1 . 2 . . 2 1 4 2 5 . 6 5 10 . Fire 955 | . 74 5 . 7 53 64 32 43 59 27 27 12 12 89 4 7 5 20 37 30 23 126 117 82 Melee 3 | . . . . . . . 3 . . . . . . . . . . . . . . . . . Ram . | . . . . . . . . . . . . . . . . . . . . . . . . . Kick 7 | . 2 . . . . . . . . . . . . . 4 . . . . . . . 1 . Crush 15 | . 4 3 . . . 3 3 . . . . 2 . . . . . . . . . . . . Escape Stasis 17 | . . . . . . . . 5 12 . . . . . . . . . . . . . . . Rewire 282 | . . . . . . . . . 280 . . . . 2 . . . . . . . . . . Trap 6 | . . . . . . . . . . . . . . . . . . 6 . . . . . . Miscellaneous . | . . . . . . . . . . . . . . . . . . . . . . . . . Route ------- -11/Scrapyard -10/Materials (discovered 4 exits: [*Mat x3] / [*Min]) -10/Mines (discovered 3 exits: [*Mat x2] / *Exi) -10/Exiles -9/Mines (discovered 2 exits: *Mat x2) -8/Materials (discovered 4 exits: *Fac x2 / *Sto x2) -8/Storage (discovered 2 exits: *Fac / *Rec) -8/Recycling -6/Factory (discovered 4 exits: Low x2 / *Ext x2) -6/Extension (discovered 2 exits: *Fac / *Cet) -6/Cetus (discovered 2 exits: *Fac / *Arc) -6/Archives (discovered 3 exits: *Fac / *Hub x2) -6/Hub_04(d) -5/Factory -4/Factory (discovered 3 exits: *Res / *Upp x2) -4/Upper Caves -4/Upper Caves (discovered 2 exits: *Res / *Zhi) -4/Zhirov -3/Proximity Caves -3/Research (discovered 2 exits: *Arm / Tes) -3/Armory -3/Lab -2/Research (discovered 2 exits: *Acc / *Qua) -2/Quarantine (discovered 3 exits: *Acc / *Sec / [*Frg]) -2/Section 7 History --------- Turn | Location | Event 1 | -11/Scrapyard | Discovered new exit (range 0) 1 | -11/Scrapyard | Entered Materials 313 | -10/Materials | Build established: Mutant 321 | -10/Materials | Discovered new exit (range 15) 390 | -10/Materials | Discovered new exit (range 13) 406 | -10/Materials | Central database locked down 705 | -10/Materials | Discovered new exit (range 5) 980 | -10/Materials | Discovered new exit (range 7) 1038 | -10/Materials | Repaired Lgt. Treads 1400 | -10/Materials | Entered Mines 1495 | -10/Mines | Discovered new exit (range 8) 1557 | -10/Mines | Assembled infested the area 1717 | -10/Mines | Found a damaged Exp. Sensor Array with a note attached 1720 | -10/Mines | Found Prototype Device 1932 | -10/Mines | Learned location of 1 exit from Materials 1940 | -10/Mines | Discovered new exit (range 13) 1990 | -10/Mines | Discovered new exit (range 5) 2089 | -10/Mines | Found a Scrap Suit stashed away for nefarious purposes 2207 | -10/Mines | Learned 2 Materials zone layouts 2225 | -10/Mines | Joined a pair of Derelicts in attacking an 0b10 outpost 2322 | -10/Mines | Learned location of Storage (-8) 2497 | -10/Mines | Entered Exiles 2497 | -10/Exiles | Accompanied by 2 allies 2527 | -10/Exiles | Led the pair of lost Derelicts to a safe place 2537 | -10/Exiles | Met 8R-AWN 2563 | -10/Exiles | Met EX-HEX 2648 | -10/Exiles | Met EX-DEC 2677 | -10/Exiles | Learned location of Zion (-7) 2723 | -10/Exiles | Discovered new exit (range 14) 2742 | -10/Exiles | Entered Mines 3017 | -9/Mines | Met a Derelict shopkeep closing up shop 3145 | -9/Mines | Learned Materials emergency access door positions 3191 | -9/Mines | Core integrity fell below 50% 3356 | -9/Mines | Discovered new exit (range 3) 3385 | -9/Mines | A weapon hastily lodged in a ceiling crevice suddenly fell to the ground 3472 | -9/Mines | Discovered new exit (range 7) 3492 | -9/Mines | Entered Materials 3492 | -8/Materials | Evolved 4 slots: Propulsion x1, Utility x2, Weapon x1 3493 | -8/Materials | Identified exit to Factory 3543 | -8/Materials | Identified exit to Storage 3620 | -8/Materials | Repaired Beam Cannon 3803 | -8/Materials | Discovered exit to Factory (range 9) 3916 | -8/Materials | Build established: Scavenger-Tank 4317 | -8/Materials | Entered Storage 4715 | -8/Storage | Repaired Hvy. Particle Gun 5011 | -8/Storage | Discovered exit to Factory (range 7) 5278 | -8/Storage | Identified Exp. Sensor Array 5542 | -8/Storage | Build established: Scavenger-Gunner 5574 | -8/Storage | Met 01-MTF 5629 | -8/Storage | Discovered new exit (range 8) 5683 | -8/Storage | Entered Recycling 5683 | -8/Recycling | Accompanied by 1 ally (01-MTF) 5684 | -8/Recycling | Met a Zionite searching for Scraptown 5910 | -8/Recycling | Build established: Gunner 6022 | -8/Recycling | Discovered new exit (range 12) 6802 | -8/Recycling | Scanned before Scraplab entrance 6920 | -8/Recycling | Angered Scraplab inhabitants 6962 | -8/Recycling | Destroyed KN-7UR 6991 | -8/Recycling | Lost 10 parts (1p4n3u2w) 7099 | -8/Recycling | Found Prototype Device 7099 | -8/Recycling | Identified Scrap Engine 7663 | -8/Recycling | Build established: Construct 7736 | -8/Recycling | Entered Factory 7736 | -6/Factory | Evolved 4 slots: Power x1, Propulsion x1, Utility x2 8910 | -6/Factory | Identified exit to Lower Caves 8910 | -6/Factory | Identified exit to Extension 9590 | -6/Factory | Entered Extension 9598 | -6/Extension | Disrupted transfer network 10170 | -6/Extension | Rescued A7 10189 | -6/Extension | Build established: Commander-Construct 10395 | -6/Extension | Rescued a captive Derelict 10396 | -6/Extension | Rescued a captive Derelict 10445 | -6/Extension | Spotted B-75 Beast 10463 | -6/Extension | Spotted B-75 Beast 10477 | -6/Extension | Extracted ID and sensor layout for unrecognized location from A7's data core 10479 | -6/Extension | Allies destroyed B-75 Beast 10485 | -6/Extension | Allies destroyed B-75 Beast 10507 | -6/Extension | Lost 5 allies 10675 | -6/Extension | Rescued a captive Derelict 10682 | -6/Extension | Lost 3 allies 11042 | -6/Extension | Rescued a captive Derelict 11098 | -6/Extension | Rescued a captive Derelict 11150 | -6/Extension | Discovered new exit (range 10) 11152 | -6/Extension | Discovered new exit (range 6) 11197 | -6/Extension | Identified exit to Cetus 11206 | -6/Extension | Entered Cetus 11206 | -6/Cetus | Accompanied by 11 allies 11228 | -6/Cetus | Spotted Cetus Guard 11229 | -6/Cetus | Spotted Cetus Guard 11233 | -6/Cetus | Spotted Cetus Guard 11234 | -6/Cetus | Allies destroyed Cetus Guard 11244 | -6/Cetus | Destroyed Cetus Guard 11244 | -6/Cetus | Spotted Cetus Guard 11257 | -6/Cetus | Allies destroyed Cetus Guard 11260 | -6/Cetus | Allies destroyed Cetus Guard 11278 | -6/Cetus | Lost 5 allies 11509 | -6/Cetus | Discovered new exit (range 15) 11539 | -6/Cetus | Spotted Cetus Guard 11539 | -6/Cetus | Spotted Cetus Guard 11542 | -6/Cetus | Destroyed Cetus Guard 11542 | -6/Cetus | Spotted Cetus Guard 11552 | -6/Cetus | Spotted Cetus Guard 11554 | -6/Cetus | Destroyed Cetus Guard 11559 | -6/Cetus | Destroyed Cetus Guard 11577 | -6/Cetus | Destroyed Cetus Guard 11596 | -6/Cetus | Discovered new exit (range 15) 11599 | -6/Cetus | Lost 4 allies 11606 | -6/Cetus | Met Revision 17 11706 | -6/Cetus | Identified exit to Archives 11717 | -6/Cetus | Entered Archives 11717 | -6/Archives | Accompanied by 2 allies 11833 | -6/Archives | Discovered new exit (range 15) 11852 | -6/Archives | Build established: Construct 11871 | -6/Archives | Discovered new exit (range 14) 11893 | -6/Archives | Discovered new exit (range 13) 11970 | -6/Archives | Unable to access archive contents 12072 | -6/Archives | Identified exit to Hub_04(d) 12075 | -6/Archives | Entered Hub_04(d) 12278 | -6/Hub_04(d) | Discovered new exit (range 11) 12304 | -6/Hub_04(d) | Core integrity fell below 50% 12338 | -6/Hub_04(d) | Identified exit to Factory 12340 | -6/Hub_04(d) | Entered Factory 12340 | -5/Factory | Evolved 2 slots: Utility x1, Weapon x1 12797 | -5/Factory | Garrison activated, responded to threat 12802 | -5/Factory | Discovered new exit (range 10) 12820 | -5/Factory | Identified exit to Factory 12825 | -5/Factory | Entered another Factory area 12825 | -4/Factory | Evolved 2 slots: Utility x2 13359 | -4/Factory | Identified exit to Upper Caves 13464 | -4/Factory | Allied Derelicts emerged from ambush trap array 13565 | -4/Factory | Lost 3 allies 14666 | -4/Factory | Discovered new exit (range 9) 14670 | -4/Factory | Entered Upper Caves 14872 | -4/Upper Caves | Found Alien Artifact 14872 | -4/Upper Caves | Identified Dimensional Node Initializer 14872 | -4/Upper Caves | Initialized slip node 15089 | -4/Upper Caves | Encountered a Warlord checkpoint 15371 | -4/Upper Caves | Learned 4 Research zone layouts 15496 | -4/Upper Caves | Discovered new exit (range 14) 15598 | -4/Upper Caves | Identified exit to Upper Caves 16282 | -4/Upper Caves | Entered another Upper Caves area 16293 | -4/Upper Caves | Learned Research emergency access door positions 16295 | -4/Upper Caves | Discovered new exit (range 8) 16311 | -4/Upper Caves | Identified exit to Research 16401 | -4/Upper Caves | Found DCF Scrap (16 items) 16435 | -4/Upper Caves | Learned Research trap positions 17529 | -4/Upper Caves | Attracted the attention of an 0b10 checkpoint 17606 | -4/Upper Caves | Discovered new exit (range 13) 17760 | -4/Upper Caves | Identified exit to Zhirov 17762 | -4/Upper Caves | Entered Zhirov 17762 | -4/Zhirov | Discovered new exit (range 3) 17799 | -4/Zhirov | Met Zhirov 17835 | -4/Zhirov | Learned location of Quarantine (-2) 17853 | -4/Zhirov | Zhirov requested help retrieving the SGEMP Prototype 17884 | -4/Zhirov | Found Alien Artifact 17884 | -4/Zhirov | Identified Integrated Reactor 17884 | -4/Zhirov | Installed Integrated Reactor, increased core energy generation (+10) 17910 | -4/Zhirov | Found Alien Artifact 17987 | -4/Zhirov | Cloak Generator disabled 17987 | -4/Zhirov | Attacked by Zhirov 17997 | -4/Zhirov | Enhanced Grunts warped into view 18031 | -4/Zhirov | Zhirov detonated his lab 18142 | -4/Zhirov | Identified exit to Proximity Caves 18231 | -4/Zhirov | Entered Proximity Caves 19770 | -3/Proximity Caves | Discovered exit to Research (range 14) 19804 | -3/Proximity Caves | Entered Research 19804 | -3/Research | Evolved 2 slots: Utility x2 19805 | -3/Research | Identified exit to Testing 19806 | -3/Research | Loaded intel: 84 trap records 20004 | -3/Research | Revision forces began assault on 0b10 20007 | -3/Research | Found Quantum Capacitor 20016 | -3/Research | Found Unknown Device 20016 | -3/Research | Identified Launcher Loader 20023 | -3/Research | Met up with Revision 17++ 20368 | -3/Research | Discovered new exit (range 9) 20412 | -3/Research | Identified exit to Armory 20504 | -3/Research | Research terminal network offline 20661 | -3/Research | Found Prototype Device 20661 | -3/Research | Identified Adv. Kinecellerator 20706 | -3/Research | Spotted Striker 20706 | -3/Research | Spotted Striker 20715 | -3/Research | Destroyed Striker 20718 | -3/Research | Destroyed Striker 20911 | -3/Research | Spotted Executioner 20913 | -3/Research | Spotted Striker 20917 | -3/Research | Destroyed Executioner 20920 | -3/Research | Destroyed Striker 20952 | -3/Research | Found Prototype Processor 20952 | -3/Research | Identified Exp. Targeting Computer 21144 | -3/Research | Entered Armory 21182 | -3/Armory | Allied Derelicts emerged from ambush trap array 21222 | -3/Armory | Lost 3 allies 21531 | -3/Armory | Identified Transdimensional Reconstructor 21531 | -3/Armory | Warped through subspace to slip node 21531 | -3/Armory | Discovered new exit (range 1) 21531 | -3/Armory | Identified exit to Lab 21631 | -3/Armory | Entered Lab 21631 | -3/Lab | Discovered new exit (range 9) 21643 | -3/Lab | Identified exit to Research 21649 | -3/Lab | Hidden lab's door opened automatically 21649 | -3/Lab | Sensor layout match revealed 21650 | -3/Lab | Gained access to the hidden lab's interior 21731 | -3/Lab | Unable to decrypt terminal 21913 | -3/Lab | Unable to decrypt terminal 21938 | -3/Lab | Found Prototype Hackware 22073 | -3/Lab | Unable to decrypt terminal 22076 | -3/Lab | Unable to decrypt terminal 22076 | -3/Lab | Opened the door to a hidden lab 22080 | -3/Lab | Unable to decrypt terminal 22118 | -3/Lab | Disabled Active System Cloaker 22125 | -3/Lab | MAIN.C forces arrive to investigate 22131 | -3/Lab | Detected by scanners 22154 | -3/Lab | Confronted by A5 22179 | -3/Lab | Destroyed A5 22193 | -3/Lab | Found Prototype Protection 22193 | -3/Lab | Identified Med. Regenerative Plating 22219 | -3/Lab | Found Prototype Hackware 22271 | -3/Lab | Found Transdimensional Reconstructor 22283 | -3/Lab | Found Alien Artifact 22283 | -3/Lab | Identified Integrated Dissipator 22283 | -3/Lab | Installed Integrated Dissipator, increased core heat dissipation (+20) 22295 | -3/Lab | Found Alien Artifact 22295 | -3/Lab | Identified Core Expander 22295 | -3/Lab | Installed Core Expander, added new Power slot 22384 | -3/Lab | Unable to decrypt terminal 22439 | -3/Lab | Found Alien Artifact 22497 | -3/Lab | Unable to decrypt terminal 22497 | -3/Lab | Found Alien Artifact 22563 | -3/Lab | Entered Research 22563 | -2/Research | Evolved 2 slots: Utility x2 22564 | -2/Research | Identified LC Capacitor 22579 | -2/Research | Identified Deep Network Scanner 22581 | -2/Research | Identified Exp. System Shield 22648 | -2/Research | Spotted B-90 Cyclops 22836 | -2/Research | Discovered new exit (range 11) 22862 | -2/Research | Identified exit to Access 22867 | -2/Research | Build established: Hacker-Construct 22993 | -2/Research | Found Fusion Bomb Launcher 23122 | -2/Research | Spotted B-90 Cyclops 23220 | -2/Research | Cargo convoy interrupted 23221 | -2/Research | Warped through subspace 23313 | -2/Research | First assault squad dispatched 23320 | -2/Research | Destroyed 9 combat bots 23501 | -2/Research | Discovered new exit (range 13) 23501 | -2/Research | Spotted B-90 Cyclops 23524 | -2/Research | Identified exit to Quarantine 23526 | -2/Research | Entered Quarantine 23538 | -2/Quarantine | Identified Core Reset Matrix 23538 | -2/Quarantine | Used Core Reset Matrix 23542 | -2/Quarantine | Detected hypermatrix surge 23542 | -2/Quarantine | Sensed 7 artifacts in vicinity 24077 | -2/Quarantine | Met incapacitated Sigix Warrior 24077 | -2/Quarantine | Lockdown squad dispatched 24134 | -2/Quarantine | Found Prototype Launcher 24134 | -2/Quarantine | Identified Tesla Bomb Launcher 24146 | -2/Quarantine | Spotted Lightning 24146 | -2/Quarantine | Spotted Lightning 24146 | -2/Quarantine | Spotted Lightning 24296 | -2/Quarantine | Destroyed Lightning 24315 | -2/Quarantine | Destroyed Lightning 24338 | -2/Quarantine | Destroyed Lightning 24353 | -2/Quarantine | Found Prototype Device 24353 | -2/Quarantine | Identified Exp. EM Shield 24395 | -2/Quarantine | Found Exp. Targeting Computer 24477 | -2/Quarantine | Acquired the access code to the Sigix quarantine chamber 24479 | -2/Quarantine | Unlocked Sigix quarantine chamber 24484 | -2/Quarantine | Found Sigix Containment Pod 24576 | -2/Quarantine | Found Subatomic Replicator 24610 | -2/Quarantine | Discovered exit to Access (range 9) 24678 | -2/Quarantine | System corruption reached 10% 24776 | -2/Quarantine | First assault squad dispatched 24784 | -2/Quarantine | Found Matter Drive 24817 | -2/Quarantine | Scanned by Researcher 24843 | -2/Quarantine | Build established: Hacker-Skirmisher 24886 | -2/Quarantine | Lost 3 parts (1u2w) 24928 | -2/Quarantine | Garrison activated, responded to threat 24975 | -2/Quarantine | Found Phase Redirector 24993 | -2/Quarantine | Lost 6 parts (1n3u2w) 25120 | -2/Quarantine | Spotted Fortress 25143 | -2/Quarantine | Core integrity fell below 50% 25185 | -2/Quarantine | Lost 4 parts (3u1w) 25203 | -2/Quarantine | Discovered new exit (range 6) 25203 | -2/Quarantine | Discovered new exit (range 6) 25208 | -2/Quarantine | Identified exit to Section 7 25210 | -2/Quarantine | Entered Section 7 25211 | -2/Section 7 | Detected hypermatrix surge 25211 | -2/Section 7 | Sensed 25 artifacts in vicinity 25271 | -2/Section 7 | Spotted S7 Guard 25357 | -2/Section 7 | Destroyed S7 Guard 25448 | -2/Section 7 | Build established: Hacker-Mutant 25555 | -2/Section 7 | Found Core Physics Calibrator 25601 | -2/Section 7 | Used Subatomic Replicator to create Supercharged Integrated Reactor 25603 | -2/Section 7 | Installed Supercharged Integrated Reactor, increased core energy generation (+15) 25739 | -2/Section 7 | Intercept squad dispatched 25743 | -2/Section 7 | Spotted Tracker 25744 | -2/Section 7 | Spotted Tracker 25746 | -2/Section 7 | Scanned by Researcher 25750 | -2/Section 7 | Spotted Combat Programmer 25751 | -2/Section 7 | Spotted Combat Programmer 25761 | -2/Section 7 | Core integrity fell below 20% 25784 | -2/Section 7 | Destroyed by Combat Programmer with EMDS Last Messages --------------- 25775_ Exp. System Shield destroyed. 25776_ Hpw. Thermal Phase Construct/G destroyed. 25776_ Scrap Engine damaged due to network destabilization (-8). 25777_ Slug penetrates Tracker. 25777_ Penetrated by EMDS Slug. 25777_ Scrap Engine destroyed. 25778_ Penetrated by EMDS Slug. 25778_ Adv. Heat Sink destroyed. 25778_ K-01 Serf collects debris. 25779_ Tracker Prototype Flight Unit temporarily disabled. 25779_ Slug penetrates Tracker. 25780_ EMDS Slug penetrates Wall. 25780_ M-36 Artificer repairs Tracker. 25780_ Penetrated by EMDS Slug. 25781_ Slug penetrates Wall. 25782_ K-01 Serf collects debris. 25782_ Combat Programmer resets Tracker, system corruption cleaned. 25783_ Penetrated by EMDS Slug. 25783_ Slug penetrates Wall. 25784_ Penetrated by EMDS Slug. Map ----- +----------------------------------------------------+ | #?????????????????????????????????????????????? | | " #?????????????????????????????????????????????? | | " #?????????????????????????????????????????????? | | " #?????????????????????????????????????????????? | | " #?????????????????????????????????????????????? | | " #?????????????????????????????????????????????? | | " #?????????????????????????????????????????????? | | " #?????????????????????????????????????????????? | | #?????????????????????????????????????????????? | | ###??????????????????????????????????????????????? | | ?????????????????????????????????????????????????? | | ?????????????????????????????????????????????????? | | ??????????????????####+#####?????????????????????? | | ??????????????????# +?????????????????????? | | ??????????????????# """ #?????????????????????? | | ??????????????????# "T" #???? ????????????????? | | ??????????????????# " " #??"""???? ???????????? | | ##????????????????# #? """"?? ???????????? | | #????????????????# # """" ??????????? | | #????????????????# + ??????????? | | ################## = # [ ??????????? | | %[%==%[[ + !% #?? #?????????? | | ###################### #####? m puw #?????????? | | #????????????#####;#### # #?????????? | | #????????????# s s # #?????????? | | #????????????# @ !p| #??????????????? | | #????????????# $%$ #??????????????? | | #????????????# "$* #??????????????? | | #????????????# "!k= # ???????????? | | #????????????# """ # #?????????? | | #????????????# "" " #?? ??????????? | | #????????????# """"" #??????????????? | | #????????????# ? #??????????????? | | #????????????# ? #??????????????? | | ######????????????##########??#??##??????????????? | | ?????????????????????????????????????????????????? | | ?????????????????????????????????????????????????? | | ?????????????????????????????????????????????????? | | ?????????????????????????????????????????????????? | | ?????????????????????????????????????????????????? | | ?????????????????????????????????????????????????? | | ?????????????????????????????????????????????????? | | ?????????????????????????????????????????????????? | | ?????????????????????????????????????????????????? | | ?????????????????????????????????????????????????? | | ?????????????????????????????????????????????????? | | ?????????????????????????????????????????????????? | | ?????????????????????????????????????????????????? | | ?????????????????????????????????????????????????? | | ?????????????????????????????????????????????????? | +----------------------------------------------------+ Best States ------------- Heat Dissipation 136 Energy Generation 65 Energy Capacity 966 Matter Stores 300 Matter Capacity 300 Sight Range 22 Robot Scan Range 20 Terrain Scan Density 10 Base Temperature (-) 200 Armor Coverage 150 Resistance: EM 75 Weapon Cycling 15 Phase Shifting 15 Evasion (%) 70 Targeting Accuracy 32 Target Analysis 8 Armor Integrity Analysis 40 Recoil Reduction 4 Energy Filtering 50 Particle Charging 20 Salvage Targeting 4 Offensive Hacking 37 Defensive Hacking 16 Item Schematics ----------------- Exp. Thermal Shield | -2/Quarantine | Archive Centrium Heavy Treads | -2/Quarantine | Archive Robot Schematics ------------------ S-43 Plague | -2/Quarantine | Archive G-73 Enforcer | -2/Quarantine | Archive Fabricated ------------ Nothing Repaired ---------- Lgt. Treads | 27% | -10/Materials Beam Cannon | 31% | -8/Materials Hvy. Particle Gun | 35% | -8/Storage Alien Tech Used ----------------- Dimensional Node Initializer Integrated Reactor Transdimensional Reconstructor Integrated Dissipator Core Expander LC Capacitor Core Reset Matrix Matter Drive Phase Redirector Core Physics Calibrator Subatomic Replicator Supercharged Integrated Reactor Achievements -------------- None Challenges ------------ None Game ------ Seed CargoContainmentSubcomponent Manual? 0 Play Time 03:07:44 Cumulative 382.9 hours Start 2025.07.18 @ 08:48:40 End 2025.07.18 @ 12:15:20 Sessions 1 Manual Loads 0 Difficulty Rogue Special Mode None Game No. 256 Rogue 256 Adventurer 0 Explorer 0 Win Type - Total 27 Types 21/0/4/2/0/0/0/0/0/0 Lore% 91 Gallery% 82 Achievement% 67 Wizard Run 0 Options --------- Layout 0 ASCII 1 Keyboard 1 Movement Arrows Keybinds 0 Fullscreen 2 Font 18/Terminus Map View 76x50 Zoom Use 0% Tactical HUD 1 Map Filters NONE Filters NONE Steam 1 RUN: 70e9d919-a8e8-4202-983a-58f3af604f39